fUSD/lending_fUSD_20260517
["ID","MTS","AMOUNT","RATE_DAILY","PERIOD"]
[422471021,1778971850000,-1109.0,0.000378,7]
[422471019,1778971850000,-284.12412572,0.00037753,120]
[422471017,1778971850000,-1078.25,0.000377,30]
[422471011,1778971850000,-930.0,0.00037659,2]
[422471022,1778971850000,-1000.0,0.000378,7]
[422471020,1778971850000,-1000.0,0.000378,7]
[422471023,1778971850000,-9246.08,0.000378,14]
[422471024,1778971850000,-151.0,0.00037805,14]
[422471027,1778971850000,-350.0,0.00037808,5]
[422471025,1778971850000,-12329.6933,0.00037808,2]
[422471028,1778971850000,-535.0,0.00037816,13]
[422471032,1778971850000,-151.0,0.00038,120]
[422471026,1778971850000,-1849.1431,0.00037808,2]
[422471031,1778971850000,-342.0,0.00038,30]
[422471029,1778971850000,-12329.6933,0.0003794,2]
[422471030,1778971850000,-500.0,0.00037945,2]
[422471034,1778971850000,-12329.6933,0.00038071,2]
[422471044,1778971850000,-901.10111612,0.000382,30]
[422471035,1778971850000,-1000.0,0.00038099,33]
[422471045,1778971850000,-12329.6933,0.00038203,2]
[422471046,1778971850000,-1147.32,0.000383,7]
[422471033,1778971850000,-152.0,0.00038,120]
[422471072,1778971850000,-300.0,0.00038362,2]
[422471135,1778971850000,-246.39,0.00039564,120]
[422471075,1778971850000,-300.0,0.00038362,2]
[422471109,1778971850000,-1000.0,0.00038911,107]
[422471104,1778971850000,-1000.0,0.00038897,39]
[422471102,1778971850000,-535.0,0.00038884,14]
[422471106,1778971850000,-1000.0,0.00038898,44]
[422471108,1778971850000,-2000.0,0.000389,7]
[422471107,1778971850000,-152.0,0.000389,120]
[422471110,1778971850000,-342.0,0.00039,30]
[422471116,1778971850000,-456.6,0.000391,30]
[422471127,1778971850000,-152.0,0.000393,120]
[422471126,1778971850000,-1519.03,0.00039269,60]
[422471115,1778971850000,-151.0,0.000391,120]
[422471117,1778971850000,-1078.25,0.000391,30]
[422471119,1778971850000,-1000.0,0.00039183,2]
[422471123,1778971850000,-1544.95,0.000392,90]
[422471122,1778971850000,-9246.08,0.000392,14]
[422471121,1778971850000,-1000.0,0.00039198,45]
[422471118,1778971850000,-204.04507846,0.00039111,2]
[422471124,1778971850000,-952.45,0.000392,90]
[422471125,1778971850000,-283.61,0.000392,90]
[422471120,1778971850000,-400.0,0.00039183,2]
[422471129,1778971850000,-500.0,0.00039397,2]
[422471128,1778971850000,-150.60535524,0.0003938,2]
[422471130,1778971850000,-535.0,0.00039418,15]
[422471134,1778971850000,-5800.0,0.00039557,14]
[422471068,1778971850000,-650.0,0.00038356,2]
[422471132,1778971850000,-1569.946778,0.000395,32]
[422471137,1778971850000,-150.0,0.00039579,2]
[422471136,1778971850000,-197.06,0.00039564,120]
[422471133,1778971850000,-230.02,0.00039531,120]
[422471103,1778971850000,-1000.0,0.00038897,13]
[422471105,1778971850000,-1000.0,0.00038898,18]
[422471131,1778971850000,-682.91,0.00039423,120]
[422471113,1778971850000,-204.04507846,0.00039011,2]
[422471100,1778971850000,-12329.6937,0.0003873,2]
[422471076,1778971850000,-300.0,0.00038362,2]
[422471077,1778971850000,-309.34,0.00038362,2]
[422471074,1778971850000,-300.0,0.00038362,2]
[422471081,1778971850000,-500.0,0.00038364,120]
[422471078,1778971850000,-500.0,0.00038364,120]
[422471084,1778971850000,-500.0,0.00038364,120]
[422471083,1778971850000,-500.0,0.00038364,120]
[422471080,1778971850000,-500.0,0.00038364,120]
[422471079,1778971850000,-500.0,0.00038364,120]
[422471082,1778971850000,-500.0,0.00038364,120]
[422471087,1778971850000,-500.0,0.00038364,120]
[422471097,1778971850000,-1000.0,0.00038517,103]
[422471086,1778971850000,-500.0,0.00038364,120]
[422471085,1778971850000,-500.0,0.00038364,120]
[422471088,1778971850000,-500.0,0.00038364,120]
[422471099,1778971850000,-3994.60520364,0.0003873,14]
[422471114,1778971850000,-1585.0,0.00039033,11]
[422471101,1778971850000,-1849.143,0.0003873,2]
[422471093,1778971850000,-188.0271109,0.00038364,120]
[422471095,1778971850000,-152.0,0.000384,120]
[422471094,1778971850000,-500.0,0.00038384,2]
[422471111,1778971850000,-208.44072055,0.00039,120]
[422471096,1778971850000,-12329.6933,0.00038467,2]
[422471090,1778971850000,-500.0,0.00038364,120]
[422471092,1778971850000,-532.0691179,0.00038364,120]
[422471098,1778971850000,-12329.6933,0.00038598,2]
[422471112,1778971850000,-2359.0,0.00039,7]
[422471091,1778971850000,-500.0,0.00038364,120]
[422471089,1778971850000,-500.0,0.00038364,120]
[422471166,1778971851000,-1000.0,0.0003994,112]
[422471176,1778971851000,-167.32677,0.0004,30]
[422471168,1778971851000,-535.0,0.00039952,16]
[422471174,1778971851000,-195.276238,0.0004,30]
[422471169,1778971851000,-1000.0,0.00039999,32]
[422471170,1778971851000,-14213.95,0.0004,120]
[422471172,1778971851000,-195.276238,0.0004,30]
[422471173,1778971851000,-195.276238,0.0004,30]
[422471175,1778971851000,-195.276238,0.0004,30]
[422471177,1778971851000,-167.32677,0.0004,30]
[422471171,1778971851000,-151.0,0.0004,30]
[422471186,1778971851000,-1402.46752,0.0004,30]
[422471181,1778971851000,-2123.786567,0.0004,30]
[422471180,1778971851000,-2123.786567,0.0004,30]
[422471182,1778971851000,-2123.786567,0.0004,30]
[422471184,1778971851000,-1402.46752,0.0004,30]
[422471185,1778971851000,-151.0,0.0004,30]
[422471187,1778971851000,-1402.46752,0.0004,30]
[422471178,1778971851000,-167.32677,0.0004,30]
[422471183,1778971851000,-2123.786567,0.0004,30]
[422471189,1778971851000,-151.0,0.0004,30]
[422471191,1778971851000,-299.822509,0.0004,30]
[422471167,1778971851000,-153.16793018,0.00039949,30]
[422471179,1778971851000,-167.32677,0.0004,30]
[422471163,1778971851000,-1224.66499459,0.000399,119]
[422471150,1778971851000,-300.0,0.00039726,120]
[422471162,1778971851000,-1000.0,0.00039899,19]
[422471139,1778971851000,-354.11,0.00039614,30]
[422471138,1778971851000,-354.11,0.00039614,30]
[422471142,1778971851000,-400.0,0.00039646,2]
[422471141,1778971851000,-400.0,0.00039646,2]
[422471140,1778971851000,-400.0,0.00039646,2]
[422471145,1778971851000,-400.0,0.00039646,2]
[422471144,1778971851000,-400.0,0.00039646,2]
[422471143,1778971851000,-400.0,0.00039646,2]
[422471146,1778971851000,-400.0,0.00039646,2]
[422471151,1778971851000,-2312.0,0.00039773,11]
[422471149,1778971851000,-163.0,0.00039673,11]
[422471165,1778971851000,-1000.0,0.00039939,119]
[422471147,1778971851000,-400.0,0.00039646,2]
[422471153,1778971851000,-3075.274003,0.00039805,2]
[422471152,1778971851000,-152.0,0.000398,120]
[422471155,1778971851000,-2000.0,0.00039805,2]
[422471154,1778971851000,-784239.691725,0.00039805,2]
[422471156,1778971851000,-10000.0,0.00039805,2]
[422471158,1778971851000,-265990.6042015,0.00039805,2]
[422471159,1778971851000,-1000.0,0.00039899,24]
[422471157,1778971851000,-1582.625274,0.00039805,2]
[422471161,1778971851000,-1000.0,0.00039899,41]
[422471160,1778971851000,-1000.0,0.00039899,49]
[422471164,1778971851000,-2312.0,0.0003992,11]
[422471148,1778971851000,-494.0,0.00039646,2]
[422471193,1778971851000,-299.822509,0.0004,30]
[422471190,1778971851000,-299.822509,0.0004,30]
[422471199,1778971851000,-500.0,0.0004,15]
[422471222,1778971851000,-500.0,0.0004,15]
[422471221,1778971851000,-500.0,0.0004,15]
[422471225,1778971851000,-500.0,0.0004,15]
[422471224,1778971851000,-500.0,0.0004,15]
[422471226,1778971851000,-500.0,0.0004,15]
[422471235,1778971851000,-500.0,0.0004,15]
[422471234,1778971851000,-500.0,0.0004,15]
[422471227,1778971851000,-500.0,0.0004,15]
[422471233,1778971851000,-500.0,0.0004,15]
[422471228,1778971851000,-500.0,0.0004,15]
[422471229,1778971851000,-500.0,0.0004,15]
[422471231,1778971851000,-500.0,0.0004,15]
[422471232,1778971851000,-500.0,0.0004,15]
[422471237,1778971851000,-500.0,0.0004,15]
[422471236,1778971851000,-500.0,0.0004,15]
[422471238,1778971851000,-500.0,0.0004,15]
[422471244,1778971851000,-500.0,0.0004,15]
[422471240,1778971851000,-500.0,0.0004,15]
[422471241,1778971851000,-500.0,0.0004,15]
[422471239,1778971851000,-500.0,0.0004,15]
[422471242,1778971851000,-500.0,0.0004,15]
[422471243,1778971851000,-500.0,0.0004,15]
[422471195,1778971851000,-500.0,0.0004,15]
[422471214,1778971851000,-500.0,0.0004,15]
[422471220,1778971851000,-500.0,0.0004,15]
[422471230,1778971851000,-500.0,0.0004,15]
[422471223,1778971851000,-500.0,0.0004,15]
[422471198,1778971851000,-500.0,0.0004,15]
[422471215,1778971851000,-500.0,0.0004,15]
[422471197,1778971851000,-500.0,0.0004,15]
[422471192,1778971851000,-151.0,0.0004,30]
[422471188,1778971851000,-1402.46752,0.0004,30]
[422471196,1778971851000,-500.0,0.0004,15]
[422471194,1778971851000,-299.822509,0.0004,30]
[422471205,1778971851000,-500.0,0.0004,15]
[422471202,1778971851000,-500.0,0.0004,15]
[422471203,1778971851000,-500.0,0.0004,15]
[422471204,1778971851000,-500.0,0.0004,15]
[422471201,1778971851000,-500.0,0.0004,15]
[422471200,1778971851000,-500.0,0.0004,15]
[422471210,1778971851000,-500.0,0.0004,15]
[422471218,1778971851000,-500.0,0.0004,15]
[422471217,1778971851000,-500.0,0.0004,15]
[422471212,1778971851000,-500.0,0.0004,15]
[422471216,1778971851000,-500.0,0.0004,15]
[422471213,1778971851000,-500.0,0.0004,15]
[422471219,1778971851000,-500.0,0.0004,15]
[422471209,1778971851000,-500.0,0.0004,15]
[422471207,1778971851000,-500.0,0.0004,15]
[422471211,1778971851000,-500.0,0.0004,15]
[422471206,1778971851000,-500.0,0.0004,15]
[422471208,1778971851000,-500.0,0.0004,15]
[422471286,1778971852000,-448.43651,0.0004,30]
[422471296,1778971852000,-240.725161,0.0004,30]
[422471281,1778971852000,-500.0,0.0004,15]
[422471277,1778971852000,-500.0,0.0004,15]
[422471278,1778971852000,-500.0,0.0004,15]
[422471279,1778971852000,-500.0,0.0004,15]
[422471276,1778971852000,-500.0,0.0004,15]
[422471282,1778971852000,-170.940753,0.0004,15]
[422471275,1778971852000,-500.0,0.0004,15]
[422471284,1778971852000,-1500.0,0.0004,32]
[422471285,1778971852000,-448.43651,0.0004,30]
[422471280,1778971852000,-500.0,0.0004,15]
[422471288,1778971852000,-448.43651,0.0004,30]
[422471300,1778971852000,-5000.0,0.00040079,15]
[422471287,1778971852000,-448.43651,0.0004,30]
[422471290,1778971852000,-240.725161,0.0004,30]
[422471292,1778971852000,-240.725161,0.0004,30]
[422471291,1778971852000,-151.0,0.0004,30]
[422471294,1778971852000,-151.0,0.0004,30]
[422471295,1778971852000,-151.0,0.0004,30]
[422471293,1778971852000,-151.0,0.0004,30]
[422471297,1778971852000,-151.0,0.0004,30]
[422471301,1778971852000,-5060.46715262,0.00040079,15]
[422471299,1778971852000,-240.725161,0.0004,30]
[422471298,1778971852000,-151.0,0.0004,30]
[422471304,1778971852000,-259.811057,0.00040079,30]
[422471283,1778971852000,-151.0,0.0004,30]
[422471289,1778971852000,-151.0,0.0004,30]
[422471274,1778971852000,-500.0,0.0004,15]
[422471248,1778971852000,-500.0,0.0004,15]
[422471267,1778971852000,-500.0,0.0004,15]
[422471305,1778971852000,-259.811057,0.00040079,30]
[422471247,1778971852000,-500.0,0.0004,15]
[422471246,1778971852000,-500.0,0.0004,15]
[422471245,1778971852000,-500.0,0.0004,15]
[422471249,1778971852000,-500.0,0.0004,15]
[422471259,1778971852000,-500.0,0.0004,15]
[422471251,1778971852000,-500.0,0.0004,15]
[422471253,1778971852000,-500.0,0.0004,15]
[422471254,1778971852000,-500.0,0.0004,15]
[422471255,1778971852000,-500.0,0.0004,15]
[422471256,1778971852000,-500.0,0.0004,15]
[422471252,1778971852000,-500.0,0.0004,15]
[422471257,1778971852000,-500.0,0.0004,15]
[422471250,1778971852000,-500.0,0.0004,15]
[422471258,1778971852000,-500.0,0.0004,15]
[422471261,1778971852000,-500.0,0.0004,15]
[422471271,1778971852000,-500.0,0.0004,15]
[422471260,1778971852000,-500.0,0.0004,15]
[422471272,1778971852000,-500.0,0.0004,15]
[422471262,1778971852000,-500.0,0.0004,15]
[422471263,1778971852000,-500.0,0.0004,15]
[422471264,1778971852000,-500.0,0.0004,15]
[422471266,1778971852000,-500.0,0.0004,15]
[422471265,1778971852000,-500.0,0.0004,15]
[422471268,1778971852000,-500.0,0.0004,15]
[422471269,1778971852000,-500.0,0.0004,15]
[422471270,1778971852000,-500.0,0.0004,15]
[422471273,1778971852000,-500.0,0.0004,15]
[422471302,1778971852000,-151.0,0.00040079,30]
[422471311,1778971852000,-463.691199,0.00040079,30]
[422471303,1778971852000,-259.811057,0.00040079,30]
[422471335,1778971852000,-223.445752,0.00040116,28]
[422471341,1778971852000,-2253.194383,0.00040116,7]
[422471339,1778971852000,-151.0,0.00040116,30]
[422471340,1778971852000,-2253.194383,0.00040116,7]
[422471342,1778971852000,-2253.194383,0.00040116,7]
[422471338,1778971852000,-223.445752,0.00040116,28]
[422471344,1778971852000,-157.143938,0.00040116,30]
[422471347,1778971852000,-157.143938,0.00040116,30]
[422471345,1778971852000,-157.143938,0.00040116,30]
[422471346,1778971852000,-157.143938,0.00040116,30]
[422471356,1778971852000,-150.0,0.00040274,2]
[422471350,1778971852000,-1391.15109988,0.00040149,7]
[422471352,1778971852000,-151.0,0.000402,120]
[422471354,1778971852000,-200.0,0.000402,10]
[422471351,1778971852000,-350.0,0.00040183,2]
[422471349,1778971852000,-1352.17681249,0.00040149,2]
[422471348,1778971852000,-2104.65,0.00040125,2]
[422471355,1778971852000,-1000.0,0.00040269,15]
[422471358,1778971852000,-150.0,0.00040274,2]
[422471357,1778971852000,-241.09524551,0.00040274,2]
[422471359,1778971852000,-150.0,0.00040274,2]
[422471363,1778971852000,-176.00420823,0.00040274,2]
[422471362,1778971852000,-150.0,0.00040274,2]
[422471361,1778971852000,-274.34450256,0.00040274,2]
[422471360,1778971852000,-150.0,0.00040274,2]
[422471365,1778971852000,-500.0,0.00040274,2]
[422471306,1778971852000,-463.691199,0.00040079,30]
[422471334,1778971852000,-151.0,0.00040116,30]
[422471337,1778971852000,-223.445752,0.00040116,28]
[422471353,1778971852000,-152.0,0.000402,120]
[422471336,1778971852000,-223.445752,0.00040116,28]
[422471332,1778971852000,-157.848747,0.00040116,30]
[422471308,1778971852000,-463.691199,0.00040079,30]
[422471307,1778971852000,-259.811057,0.00040079,30]
[422471309,1778971852000,-463.691199,0.00040079,30]
[422471364,1778971852000,-500.0,0.00040274,2]
[422471310,1778971852000,-151.0,0.00040079,30]
[422471314,1778971852000,-884.0,0.000401,30]
[422471313,1778971852000,-314.0,0.000401,30]
[422471317,1778971852000,-1592.98310658,0.00040116,7]
[422471318,1778971852000,-627.669364,0.00040116,30]
[422471319,1778971852000,-627.669364,0.00040116,30]
[422471320,1778971852000,-627.669364,0.00040116,30]
[422471315,1778971852000,-308.0,0.000401,30]
[422471312,1778971852000,-1000.0,0.000401,30]
[422471322,1778971852000,-627.669364,0.00040116,30]
[422471343,1778971852000,-2253.194383,0.00040116,7]
[422471316,1778971852000,-391.71765849,0.00040115,2]
[422471333,1778971852000,-232.716665,0.00040116,20]
[422471327,1778971852000,-151.0,0.00040116,30]
[422471328,1778971852000,-151.0,0.00040116,30]
[422471326,1778971852000,-151.0,0.00040116,30]
[422471325,1778971852000,-184.204153,0.00040116,30]
[422471324,1778971852000,-184.204153,0.00040116,30]
[422471321,1778971852000,-184.204153,0.00040116,30]
[422471323,1778971852000,-184.204153,0.00040116,30]
[422471331,1778971852000,-151.0,0.00040116,30]
[422471330,1778971852000,-151.0,0.00040116,20]
[422471329,1778971852000,-151.0,0.00040116,30]
[422471394,1778971853000,-800.0,0.00040292,15]
[422471396,1778971853000,-800.0,0.00040292,15]
[422471389,1778971853000,-800.0,0.00040292,15]
[422471393,1778971853000,-800.0,0.00040292,15]
[422471388,1778971853000,-900.0,0.00040292,15]
[422471390,1778971853000,-800.0,0.00040292,15]
[422471387,1778971853000,-900.0,0.00040292,15]
[422471392,1778971853000,-800.0,0.00040292,15]
[422471395,1778971853000,-800.0,0.00040292,15]
[422471401,1778971853000,-163.8,0.000403,29]
[422471399,1778971853000,-160.0,0.000403,50]
[422471397,1778971853000,-1000.0,0.00040299,29]
[422471400,1778971853000,-150.0,0.000403,29]
[422471403,1778971853000,-300.0,0.000403,10]
[422471402,1778971853000,-212.94,0.000403,29]
[422471404,1778971853000,-194.168,0.000403,42]
[422471386,1778971853000,-900.0,0.00040292,15]
[422471406,1778971853000,-164.32,0.00040301,120]
[422471398,1778971853000,-1000.0,0.00040299,42]
[422471391,1778971853000,-800.0,0.00040292,15]
[422471372,1778971853000,-150.0,0.00040274,2]
[422471385,1778971853000,-900.0,0.00040292,15]
[422471405,1778971853000,-200.0,0.000403,19]
[422471368,1778971853000,-553.49084739,0.00040274,2]
[422471369,1778971853000,-500.0,0.00040274,2]
[422471367,1778971853000,-500.0,0.00040274,2]
[422471366,1778971853000,-500.0,0.00040274,2]
[422471370,1778971853000,-242.6683652,0.00040274,2]
[422471371,1778971853000,-150.0,0.00040274,2]
[422471374,1778971853000,-299.41353446,0.00040274,2]
[422471384,1778971853000,-900.0,0.00040292,15]
[422471377,1778971853000,-462.3,0.0004029,60]
[422471376,1778971853000,-2912.09,0.0004029,60]
[422471373,1778971853000,-150.0,0.00040274,2]
[422471378,1778971853000,-1675.19,0.0004029,60]
[422471379,1778971853000,-3397.24,0.0004029,60]
[422471380,1778971853000,-350.0,0.0004029,3]
[422471382,1778971853000,-900.0,0.00040292,15]
[422471381,1778971853000,-900.0,0.00040292,15]
[422471383,1778971853000,-900.0,0.00040292,15]
[422471375,1778971853000,-1000.0,0.00040275,90]
[422471408,1778971853000,-2312.0,0.00040318,11]
[422471407,1778971853000,-470.06119019,0.00040317,2]
[422471445,1778971853000,-160.0,0.00040364,2]
[422471435,1778971853000,-160.0,0.00040364,2]
[422471434,1778971853000,-160.0,0.00040364,2]
[422471430,1778971853000,-160.0,0.00040364,2]
[422471436,1778971853000,-160.0,0.00040364,2]
[422471438,1778971853000,-160.0,0.00040364,2]
[422471441,1778971853000,-160.0,0.00040364,2]
[422471440,1778971853000,-291.16,0.00040364,2]
[422471439,1778971853000,-160.0,0.00040364,2]
[422471433,1778971853000,-160.0,0.00040364,2]
[422471444,1778971853000,-160.0,0.00040364,2]
[422471443,1778971853000,-160.0,0.00040364,2]
[422471446,1778971853000,-160.0,0.00040364,2]
[422471447,1778971853000,-160.0,0.00040364,2]
[422471448,1778971853000,-160.0,0.00040364,2]
[422471449,1778971853000,-160.0,0.00040364,2]
[422471450,1778971853000,-160.0,0.00040364,2]
[422471451,1778971853000,-160.0,0.00040364,2]
[422471411,1778971853000,-3312.41775212,0.00040344,2]
[422471442,1778971853000,-160.0,0.00040364,2]
[422471432,1778971853000,-160.0,0.00040364,2]
[422471437,1778971853000,-160.0,0.00040364,2]
[422471429,1778971853000,-160.0,0.00040364,2]
[422471409,1778971853000,-19827.2,0.00040332,15]
[422471412,1778971853000,-150.0,0.00040344,2]
[422471410,1778971853000,-150.0,0.00040344,2]
[422471413,1778971853000,-17297.33122518,0.00040344,2]
[422471431,1778971853000,-160.0,0.00040364,2]
[422471415,1778971853000,-2292.88047969,0.00040344,2]
[422471420,1778971853000,-500.0,0.00040353,3]
[422471414,1778971853000,-150.0,0.00040344,2]
[422471416,1778971853000,-418.0,0.00040353,120]
[422471417,1778971853000,-152.0,0.00040353,120]
[422471418,1778971853000,-500.0,0.00040353,3]
[422471421,1778971853000,-500.0,0.00040353,3]
[422471422,1778971853000,-500.0,0.00040353,3]
[422471425,1778971853000,-500.0,0.00040356,60]
[422471426,1778971853000,-246.09296289,0.00040364,120]
[422471423,1778971853000,-500.0,0.00040356,60]
[422471424,1778971853000,-500.0,0.00040356,60]
[422471428,1778971853000,-160.0,0.00040364,2]
[422471427,1778971853000,-500.0,0.00040364,120]
[422471419,1778971853000,-500.0,0.00040353,3]
[422471494,1778971854000,-1830.08120038,0.00040381,120]
[422471503,1778971854000,-3980.91787391,0.000405,120]
[422471498,1778971854000,-150.0,0.00040381,2]
[422471493,1778971854000,-164.0,0.00040381,120]
[422471491,1778971854000,-150.0,0.00040381,6]
[422471486,1778971854000,-320.52040482,0.00040381,120]
[422471489,1778971854000,-153.0,0.00040381,120]
[422471484,1778971854000,-406.85,0.00040381,120]
[422471481,1778971854000,-406.85,0.00040381,120]
[422471482,1778971854000,-406.85,0.00040381,120]
[422471492,1778971854000,-191.0,0.00040381,120]
[422471487,1778971854000,-309.72566823,0.00040381,120]
[422471485,1778971854000,-666.0,0.00040381,120]
[422471495,1778971854000,-495.59196105,0.00040381,120]
[422471507,1778971854000,-200.0,0.00040562,2]
[422471504,1778971854000,-150.8036404,0.00040518,120]
[422471502,1778971854000,-535.0,0.00040486,16]
[422471499,1778971854000,-456.6,0.000404,30]
[422471497,1778971854000,-2000.0,0.00040381,120]
[422471496,1778971854000,-155.0,0.00040381,120]
[422471501,1778971854000,-1000.0,0.00040485,16]
[422471506,1778971854000,-150.0,0.00040548,2]
[422471505,1778971854000,-150.80364039,0.00040518,120]
[422471516,1778971854000,-200.0,0.00040562,2]
[422471517,1778971854000,-200.0,0.00040562,2]
[422471518,1778971854000,-200.0,0.00040562,2]
[422471509,1778971854000,-200.0,0.00040562,2]
[422471490,1778971854000,-436.0,0.00040381,120]
[422471500,1778971854000,-2312.0,0.00040413,11]
[422471488,1778971854000,-151.0,0.00040381,120]
[422471461,1778971854000,-480.0,0.00040364,120]
[422471480,1778971854000,-406.85,0.00040381,120]
[422471456,1778971854000,-269.21132854,0.00040364,60]
[422471452,1778971854000,-160.0,0.00040364,2]
[422471453,1778971854000,-160.0,0.00040364,2]
[422471454,1778971854000,-160.0,0.00040364,2]
[422471455,1778971854000,-322.160001,0.00040364,2]
[422471457,1778971854000,-269.21132854,0.00040364,60]
[422471458,1778971854000,-269.21132854,0.00040364,60]
[422471459,1778971854000,-480.0,0.00040364,120]
[422471466,1778971854000,-1000.0,0.00040379,3]
[422471465,1778971854000,-151.0,0.00040368,120]
[422471462,1778971854000,-480.0,0.00040364,120]
[422471460,1778971854000,-480.0,0.00040364,120]
[422471463,1778971854000,-206.0,0.00040364,120]
[422471467,1778971854000,-1000.0,0.00040379,12]
[422471464,1778971854000,-167.0,0.00040364,120]
[422471468,1778971854000,-172.63,0.0004038,2]
[422471469,1778971854000,-406.85,0.00040381,120]
[422471479,1778971854000,-406.85,0.00040381,120]
[422471470,1778971854000,-406.85,0.00040381,120]
[422471473,1778971854000,-406.85,0.00040381,120]
[422471478,1778971854000,-406.85,0.00040381,120]
[422471472,1778971854000,-406.85,0.00040381,120]
[422471471,1778971854000,-406.85,0.00040381,120]
[422471474,1778971854000,-406.85,0.00040381,120]
[422471475,1778971854000,-406.85,0.00040381,120]
[422471476,1778971854000,-406.85,0.00040381,120]
[422471477,1778971854000,-406.85,0.00040381,120]
[422471483,1778971854000,-406.85,0.00040381,120]
[422471515,1778971854000,-200.0,0.00040562,2]
[422471557,1778971854000,-200.0,0.00040562,2]
[422471513,1778971854000,-200.0,0.00040562,2]
[422471543,1778971854000,-200.0,0.00040562,2]
[422471546,1778971854000,-200.0,0.00040562,2]
[422471550,1778971854000,-200.0,0.00040562,2]
[422471547,1778971854000,-200.0,0.00040562,2]
[422471549,1778971854000,-200.0,0.00040562,2]
[422471552,1778971854000,-200.0,0.00040562,2]
[422471551,1778971854000,-200.0,0.00040562,2]
[422471548,1778971854000,-200.0,0.00040562,2]
[422471553,1778971854000,-200.0,0.00040562,2]
[422471568,1778971854000,-3543.0,0.00040659,2]
[422471556,1778971854000,-200.0,0.00040562,2]
[422471566,1778971854000,-5561.18796262,0.00040643,2]
[422471564,1778971854000,-1956.0,0.00040638,5]
[422471558,1778971854000,-200.0,0.00040562,2]
[422471563,1778971854000,-150.0,0.00040601,2]
[422471560,1778971854000,-200.0,0.00040562,2]
[422471559,1778971854000,-200.0,0.00040562,2]
[422471565,1778971854000,-1559.0,0.00040638,5]
[422471567,1778971854000,-625.0,0.00040659,2]
[422471561,1778971854000,-334.0,0.00040562,2]
[422471562,1778971854000,-2082.01435369,0.00040568,6]
[422471573,1778971854000,-417.0,0.00040659,2]
[422471571,1778971854000,-150.0,0.00040659,2]
[422471569,1778971854000,-1354.0,0.00040659,2]
[422471570,1778971854000,-926.0,0.00040659,2]
[422471510,1778971854000,-200.0,0.00040562,2]
[422471572,1778971854000,-1270.0,0.00040659,2]
[422471545,1778971854000,-200.0,0.00040562,2]
[422471554,1778971854000,-200.0,0.00040562,2]
[422471574,1778971854000,-930.0,0.00040659,2]
[422471555,1778971854000,-200.0,0.00040562,2]
[422471511,1778971854000,-200.0,0.00040562,2]
[422471544,1778971854000,-200.0,0.00040562,2]
[422471508,1778971854000,-200.0,0.00040562,2]
[422471514,1778971854000,-200.0,0.00040562,2]